bitfinex-derivatives/quotes_SOLF0:USTF0_20250111
["timestamp","ask_amount","ask_price","bid_price","bid_amount"]
[1736576553623,9.82444112,187.0,186.97,4.35914535]
[1736576553823,9.82444112,187.0,186.96,5.36]
[1736576554034,9.82444112,187.0,186.97,4.35911019]
[1736576554232,9.82444112,187.0,186.96,5.36]
[1736576554436,9.82444112,187.0,186.97,4.36014524]
[1736576554734,9.82444112,187.0,186.96,5.36]
[1736576555827,3.1773,187.07,186.96,5.36]
[1736576556032,3.1773,187.07,186.97,7.14994112]
[1736576556327,7.14994112,187.04,186.98,4.3608143]
[1736576556631,7.14994112,187.04,186.99,4.3608143]
[1736576556826,7.14994112,187.04,186.97,7.14994112]
[1736576557029,9.82374112,187.04,186.99,7.14994112]
[1736576557224,7.14994112,187.04,187.0,4.36156084]
[1736576557432,7.14994112,187.04,186.99,7.14994112]
[1736576557633,9.82384112,187.04,187.0,4.36173911]
[1736576557833,9.82384112,187.04,186.99,7.14994112]
[1736576558136,9.82384112,187.04,187.0,4.36192983]
[1736576558340,7.14994112,187.04,186.99,7.14994112]
[1736576558536,7.14994112,187.04,187.0,4.36089111]
[1736576558732,7.14994112,187.04,186.99,7.14994112]
[1736576558934,7.14994112,187.04,187.0,4.36083332]
[1736576559134,9.82384112,187.04,186.99,7.14994112]
[1736576559332,9.82384112,187.04,187.0,4.36012734]
[1736576559537,9.82384112,187.04,186.99,7.14994112]
[1736576559835,9.82384112,187.04,187.0,4.35984209]
[1736576560140,9.82384112,187.04,186.98,2.6746]
[1736576560332,9.82384112,187.04,186.99,4.35940806]
[1736576560532,7.14994112,187.04,187.0,4.35940806]
[1736576560733,2.674,187.03,186.97,9.82474112]
[1736576561035,2.674,187.03,186.98,4.36042193]
[1736576561236,2.674,187.03,186.97,9.82474112]
[1736576561435,2.6743,187.02,186.98,4.36035103]
[1736576561731,9.82424112,187.02,186.97,7.14994112]
[1736576562341,9.82424112,187.02,186.98,4.36136385]
[1736576562540,9.82424112,187.02,186.97,7.14994112]
[1736576562839,9.82424112,187.02,186.98,4.36147364]
[1736576563142,9.82424112,187.02,186.97,9.82474112]
[1736576563441,9.82424112,187.02,186.98,4.36154252]
[1736576563640,9.82424112,187.02,186.97,9.82474112]
[1736576563842,9.82424112,187.02,186.98,4.36156527]
[1736576564044,9.82424112,187.02,186.97,9.82474112]
[1736576564336,9.82424112,187.02,186.98,4.36189096]
[1736576564542,9.82424112,187.02,186.97,9.82474112]
[1736576568446,9.82424112,187.02,186.98,4.36412647]
[1736576568744,9.82424112,187.02,186.97,9.82474112]
[1736576568941,9.82424112,187.02,186.98,4.36469468]
[1736576569147,9.82424112,187.02,186.97,9.82474112]
[1736576569444,9.82424112,187.02,186.98,4.3654623]
[1736576569747,3.1773,187.07,186.97,7.14994112]
[1736576569950,2.6738,187.04,186.99,2.6745]
[1736576570145,2.6738,187.04,187.0,4.364325]
[1736576570449,7.14994112,187.05,186.99,2.6745]
[1736576570748,7.14994112,187.05,186.97,7.14994112]
[1736576571051,2.674,187.03,186.98,7.03846471]
[1736576571240,2.674,187.03,186.98,2.6747]
[1736576571646,2.674,187.03,186.97,9.82474112]
[1736576571941,2.674,187.03,186.98,4.36408787]
[1736576572152,2.674,187.03,186.97,9.82474112]
[1736576572351,9.82394112,187.03,186.98,4.36423699]
[1736576572552,9.82394112,187.03,186.97,9.82474112]
[1736576572750,9.82394112,187.03,186.98,4.36428845]
[1736576572950,9.82394112,187.03,186.97,9.82474112]
[1736576573351,9.82394112,187.03,186.98,4.36432998]
[1736576573554,9.82394112,187.03,186.97,9.82474112]
[1736576573853,9.82394112,187.03,186.98,4.36416673]
[1736576574053,9.82394112,187.03,186.99,4.36416673]
[1736576574255,9.82394112,187.03,186.97,9.82474112]
[1736576574456,9.82394112,187.03,186.98,4.36392457]
[1736576574756,9.82394112,187.03,186.97,9.82474112]
[1736576574954,9.82394112,187.03,186.98,4.36400551]
[1736576575154,9.82394112,187.03,186.97,9.82474112]
[1736576575354,9.82394112,187.03,186.98,4.36440354]
[1736576575657,9.82394112,187.03,186.99,4.36430922]
[1736576575859,9.82394112,187.03,186.97,9.82474112]
[1736576576060,9.82394112,187.03,186.98,4.36427313]
[1736576576358,9.82394112,187.03,186.99,4.36427313]
[1736576576657,9.82394112,187.03,186.97,9.82474112]
[1736576576855,9.82394112,187.03,186.98,4.36514766]
[1736576577055,9.82394112,187.03,186.99,4.36514766]
[1736576577258,9.82394112,187.03,186.97,9.82474112]
[1736576577453,9.82394112,187.03,186.98,4.36699553]
[1736576577657,7.14994112,187.03,186.99,4.36699553]
[1736576577860,2.6744,187.01,186.96,8.0349]
[1736576578063,2.6744,187.01,186.97,4.36749903]
[1736576578359,2.6744,187.01,186.98,4.36749903]
[1736576578557,2.6744,187.01,186.99,4.36749903]
[1736576578756,2.6744,187.01,186.96,2.6749]
[1736576579058,2.6744,187.01,186.97,4.36940866]
[1736576579260,2.6744,187.01,186.98,4.36940866]
[1736576579460,2.6744,187.01,186.96,2.6749]
[1736576579658,2.6744,187.01,186.97,4.3698135]
[1736576579857,2.6744,187.01,186.98,4.3698135]
[1736576580059,2.6744,187.01,186.99,4.36920431]
[1736576580252,2.6744,187.01,186.96,2.6749]
[1736576580457,9.82404112,187.03,186.98,2.6747]
[1736576580659,9.82404112,187.03,186.99,4.36926261]
[1736576580857,9.82404112,187.03,187.0,4.36926261]
[1736576581057,9.82404112,187.03,186.98,2.6747]
[1736576581259,9.82404112,187.03,186.99,4.3692564]
[1736576581457,9.82404112,187.03,186.98,2.6747]
[1736576581753,9.82404112,187.03,186.99,4.36924803]
[1736576581958,9.82404112,187.03,186.98,2.6747]
[1736576582158,9.82404112,187.03,186.99,4.36923361]
[1736576582458,9.82404112,187.03,187.0,4.36923361]
[1736576582663,2.6744,187.01,186.97,7.14994112]
[1736576582866,2.6744,187.01,186.98,4.36967657]
[1736576583065,2.6744,187.01,186.97,7.14994112]
[1736576583263,2.6744,187.01,186.98,4.37048648]
[1736576583463,2.6744,187.01,186.97,7.14994112]
[1736576583665,2.6744,187.01,186.98,4.37049477]
[1736576583865,2.6744,187.01,186.99,4.37049477]
[1736576584165,2.6744,187.01,186.97,7.14994112]
[1736576584365,2.6744,187.01,186.98,4.37069583]
[1736576584564,2.6744,187.01,186.99,4.37069583]
[1736576584764,2.6744,187.01,186.97,7.14994112]
[1736576584973,2.6744,187.01,186.98,4.370616]
[1736576585165,2.6744,187.01,186.99,4.37153148]
[1736576585367,2.6744,187.01,186.96,39.32464236]
[1736576585566,2.6744,187.01,186.97,4.37192068]
[1736576585766,2.6744,187.01,186.98,4.37192068]
[1736576586069,2.6744,187.01,186.96,39.32464236]
[1736576586261,2.6744,187.01,186.97,4.3727561]
[1736576586463,2.6744,187.01,186.98,4.3727561]
[1736576586661,2.6744,187.01,186.96,9.82494112]
[1736576586861,2.6744,187.01,186.97,4.37332815]
[1736576587068,2.6744,187.01,186.98,4.37332815]
[1736576587258,2.6744,187.01,186.96,9.82494112]
[1736576587463,2.6744,187.01,186.97,4.37390884]
[1736576587663,2.6744,187.01,186.98,4.37390884]
[1736576587863,2.6744,187.01,186.99,4.37380709]
[1736576588068,2.6744,187.01,186.96,9.82494112]
[1736576588262,2.6744,187.01,186.97,4.37441451]
[1736576588463,2.6744,187.01,186.98,4.37441451]
[1736576588658,2.6744,187.01,186.99,4.37441451]
[1736576588860,2.6744,187.01,186.96,9.82494112]
[1736576589064,2.6744,187.01,186.97,4.37465491]
[1736576589266,2.6744,187.01,186.98,4.37465491]
[1736576589465,2.6744,187.01,186.99,4.37465491]
[1736576589667,2.6744,187.01,186.96,9.82494112]
[1736576589868,2.6744,187.01,186.97,4.37543413]
[1736576590071,2.6744,187.01,186.98,4.37543413]
[1736576590268,2.6744,187.01,186.99,4.37543413]
[1736576590471,2.6744,187.01,186.96,9.82494112]
[1736576590669,2.6744,187.01,186.97,4.37633543]
[1736576590873,2.6744,187.01,186.98,4.37633543]
[1736576591172,2.6744,187.01,186.99,4.37633543]
[1736576591361,2.6744,187.01,186.96,17.19986643]
[1736576591566,2.6744,187.01,186.97,4.37801809]
[1736576591765,2.6744,187.01,186.98,4.37801809]
[1736576591966,2.6744,187.01,186.99,4.37801809]
[1736576592167,2.6744,187.01,186.96,9.82494112]
[1736576592370,2.6744,187.01,186.97,4.37919622]
[1736576592570,2.6744,187.01,186.98,4.37919622]
[1736576592771,2.6744,187.01,186.99,4.37919622]
[1736576592972,2.6744,187.01,186.96,9.82494112]
[1736576593173,2.6744,187.01,186.97,4.379232]
[1736576593373,2.6744,187.01,186.98,4.379232]
[1736576593567,2.6744,187.01,186.99,4.38011599]
[1736576593771,2.6744,187.01,186.96,9.82494112]
[1736576593973,2.6744,187.01,186.97,10.00449708]
[1736576594176,2.6744,187.01,186.98,4.38001858]
[1736576594477,2.6744,187.01,186.99,4.38001858]
[1736576594775,2.6744,187.01,186.96,9.82494112]
[1736576594976,2.6744,187.01,186.97,4.37985642]
[1736576595172,2.6744,187.01,186.98,4.37985642]
[1736576595372,2.6744,187.01,186.99,4.37985642]
[1736576595572,2.6744,187.01,186.96,9.82494112]
[1736576595773,2.6744,187.01,186.97,10.00569609]
[1736576595973,2.6744,187.01,186.98,4.38059637]
[1736576596173,2.6744,187.01,186.99,4.38059637]
[1736576596369,2.6744,187.01,186.96,9.82494112]
[1736576596574,2.6744,187.01,186.97,4.38034197]
[1736576596771,2.6744,187.01,186.98,4.38034197]
[1736576596974,2.6744,187.01,186.99,4.38034197]
[1736576597275,2.6744,187.01,186.96,9.82494112]
[1736576597475,2.6744,187.01,186.97,4.38161591]
[1736576597674,2.6744,187.01,186.98,4.38161591]
[1736576597875,2.6744,187.01,186.99,4.38161591]
[1736576598076,2.6744,187.01,187.0,4.38161591]
[1736576598977,2.6744,187.01,186.96,9.82494112]
[1736576599178,2.6744,187.01,186.97,4.38292328]
[1736576599378,2.6744,187.01,186.98,4.38292328]
[1736576599579,2.6744,187.01,186.99,4.38292328]
[1736576599775,2.6744,187.01,186.96,9.82494112]
[1736576599972,2.6744,187.01,186.97,4.38189779]
[1736576600175,2.6744,187.01,186.98,4.38189779]
[1736576600378,2.6744,187.01,186.99,4.38189779]
[1736576600577,2.6744,187.01,187.0,4.38189779]
[1736576600780,2.6744,187.01,186.96,9.82494112]
[1736576600972,2.6744,187.01,186.97,4.38257455]
[1736576601279,2.6742,187.02,186.98,4.38257455]
[1736576601484,2.6742,187.02,186.97,2.6748]
[1736576601485,2.6742,187.02,186.99,4.38257455]
[1736576601673,2.6742,187.02,187.0,4.38257455]
[1736576601877,2.6742,187.02,186.97,2.6748]
[1736576602077,2.6742,187.02,186.98,4.38366474]
[1736576602280,2.6742,187.02,186.99,4.38366474]
[1736576602481,2.6742,187.02,187.0,4.38366474]
[1736576602682,2.6742,187.02,187.01,4.38366474]
[1736576603884,2.6739,187.04,187.01,4.38366474]
[1736576604078,2.6739,187.04,187.02,4.38366474]
[1736576604284,2.6739,187.04,187.0,2.6744]
[1736576604484,2.6739,187.04,187.01,4.38586355]
[1736576604785,2.6739,187.04,187.02,4.38586355]
[1736576605080,2.6739,187.04,187.03,4.38586355]
[1736576605284,2.6739,187.04,187.0,2.6744]
[1736576605484,2.6739,187.04,187.01,4.38545514]
[1736576605685,2.6739,187.04,187.02,4.38545514]
[1736576605888,7.14994112,187.05,187.01,2.6742]
[1736576606184,7.14994112,187.05,187.02,4.38511108]
[1736576606385,7.14994112,187.05,187.03,4.38511108]
[1736576606586,7.14994112,187.05,187.01,2.6742]
[1736576606788,7.14994112,187.05,186.98,14.52486643]
[1736576606789,3.1773,187.07,187.03,2.6739]
[1736576606986,9.82324112,187.08,187.04,4.38373693]
[1736576607188,9.82324112,187.08,187.05,4.38373693]
[1736576607383,9.82324112,187.08,187.03,2.6739]
[1736576607588,9.82324112,187.08,187.04,4.38110309]
[1736576607788,9.82324112,187.08,187.05,4.38110309]
[1736576607989,9.82324112,187.08,187.06,4.38110309]
[1736576608178,9.82324112,187.08,187.03,2.6739]
[1736576608382,9.82324112,187.08,187.04,4.3805783]
[1736576608582,9.82324112,187.08,187.05,4.3805783]
[1736576608782,9.82324112,187.08,187.03,2.6739]
[1736576608985,9.82324112,187.08,187.04,4.37812548]
[1736576609185,9.82324112,187.08,187.05,4.37812548]
[1736576609480,9.82324112,187.08,187.03,2.6739]
[1736576609685,9.82324112,187.08,187.04,4.37751773]
[1736576609885,9.82324112,187.08,187.05,4.37751773]
[1736576610086,2.6733,187.08,187.03,2.6739]
[1736576610290,9.82324112,187.08,187.04,4.37732963]
[1736576610483,9.82324112,187.08,187.05,4.37732963]
[1736576610686,9.82324112,187.08,187.03,2.6739]
[1736576610886,2.6733,187.08,187.04,4.37573812]
[1736576611090,9.82324112,187.08,187.05,4.37573812]
[1736576611290,9.82324112,187.08,187.03,2.6739]
[1736576611486,9.82324112,187.08,187.04,4.37457221]
[1736576611792,9.82324112,187.08,187.05,4.37457221]
[1736576612088,9.82324112,187.08,187.03,2.6739]
[1736576612289,9.82324112,187.08,187.04,4.37474368]
[1736576612499,9.82324112,187.08,187.05,4.37474368]
[1736576612685,2.6734,187.07,187.03,2.6739]
[1736576612892,2.6734,187.07,187.04,4.37426629]
[1736576613092,2.6734,187.07,187.05,4.37426629]
[1736576613292,2.6734,187.07,187.03,2.6739]
[1736576613493,2.6734,187.07,187.04,4.37357004]
[1736576613690,2.6734,187.07,187.03,2.6739]
[1736576613887,7.14994112,187.08,187.04,4.37373936]
[1736576614091,9.82324112,187.08,187.03,2.6739]
[1736576614293,9.82324112,187.08,187.04,4.37349223]
[1736576614497,9.82324112,187.08,187.03,2.6739]
[1736576614697,9.82324112,187.08,187.04,4.37280222]
[1736576614894,9.82324112,187.08,187.03,2.6739]
[1736576615094,9.82324112,187.08,187.04,4.37259417]
[1736576615293,9.82324112,187.08,187.05,4.37259417]
[1736576615595,9.82324112,187.08,187.03,2.6739]
[1736576615796,9.82324112,187.08,187.04,4.3710916]
[1736576615999,9.82324112,187.08,187.05,4.3710916]
[1736576616195,9.82324112,187.08,187.03,2.6739]
[1736576616695,9.82324112,187.08,187.04,4.37094135]
[1736576616896,9.82324112,187.08,187.05,4.37094135]
[1736576617094,9.82324112,187.08,187.03,2.6739]
[1736576617294,9.82324112,187.08,187.04,4.37077072]
[1736576617497,9.82324112,187.08,187.05,4.37077072]
[1736576617800,9.82324112,187.08,187.03,2.6739]
[1736576617999,9.82324112,187.08,187.04,4.37048797]
[1736576618196,9.82324112,187.08,187.03,2.6739]
[1736576618397,9.82324112,187.08,187.04,4.37027866]
[1736576618589,9.82324112,187.08,187.03,2.6739]
[1736576618795,9.82324112,187.08,187.04,4.37032153]
[1736576618995,9.82324112,187.08,187.03,2.6739]
[1736576619191,9.82324112,187.08,187.04,4.370348]
[1736576619395,9.82324112,187.08,187.03,2.6739]
[1736576619595,7.14994112,187.06,187.04,4.36976003]
[1736576619799,7.14994112,187.06,187.02,5.36]
[1736576620000,7.14994112,187.06,187.03,4.37069929]
[1736576620302,7.14994112,187.06,187.0,7.14994112]
[1736576620600,2.6737,187.05,187.01,4.37141164]
[1736576620796,2.6737,187.05,187.02,4.37141164]
[1736576621000,6.58645546,187.11,187.02,9.82404112]
[1736576621204,6.58645546,187.11,187.04,7.14994112]
[1736576621499,7.14994112,187.1,187.04,7.14994112]
[1736576622101,2.6733,187.09,187.04,7.14994112]
[1736576622299,7.14994112,187.1,187.05,4.37173463]
[1736576622500,7.14994112,187.1,187.04,7.14994112]
[1736576624108,2.6733,187.08,187.04,7.14994112]
[1736576627508,2.673,187.1,187.05,2.6737]
[1736576627701,9.82294112,187.1,187.05,2.6737]
[1736576628305,4.95615546,187.11,187.04,7.14994112]
[1736576628505,7.62905546,187.11,187.06,2.6735]
[1736576629197,7.62905546,187.11,187.04,7.14994112]
[1736576629399,2.673,187.1,187.05,4.37125564]
[1736576629602,2.673,187.1,187.06,4.37125564]
[1736576629900,2.673,187.1,187.04,9.82364112]
[1736576630103,2.673,187.1,187.05,4.3708125]
[1736576630307,2.673,187.1,187.06,4.3708125]
[1736576630610,2.673,187.1,187.04,2.6737]
[1736576630807,2.673,187.1,187.05,11.52072427]
[1736576631003,2.673,187.1,187.06,4.37078315]
[1736576631306,2.673,187.1,187.05,9.82364112]
[1736576631509,2.673,187.1,187.06,4.37030757]
[1736576631707,2.673,187.1,187.05,9.82364112]
[1736576631909,2.673,187.1,187.06,4.37027956]
[1736576632205,2.673,187.1,187.05,9.82364112]
[1736576632411,2.673,187.1,187.06,4.37046871]
[1736576632609,2.673,187.1,187.05,9.82364112]
[1736576632908,2.673,187.1,187.06,4.37053601]
[1736576633105,2.673,187.1,187.05,9.82364112]
[1736576633305,7.62905546,187.11,187.06,7.04314054]
[1736576633505,7.62905546,187.11,187.06,2.6735]
[1736576636512,4.95615546,187.11,187.03,29.49970124]
[1736576636713,2.6733,187.08,187.04,4.36925635]
[1736576637007,2.6733,187.08,187.03,36.64964236]
[1736576637213,2.6733,187.08,187.04,4.36994463]
[1736576637410,2.6733,187.08,187.05,4.37033963]
[1736576637611,2.6733,187.08,187.03,14.52486643]
[1736576637806,2.6733,187.08,187.04,4.36973264]
[1736576638008,2.6733,187.08,187.03,14.52486643]
[1736576638210,2.6733,187.08,187.04,4.36992345]
[1736576638413,2.6733,187.08,187.03,7.14994112]
[1736576638610,2.6733,187.08,187.04,4.37050803]
[1736576638810,2.6733,187.08,187.05,4.37050803]
[1736576639010,2.6733,187.08,187.03,7.14994112]
[1736576639211,2.6733,187.08,187.04,4.36981086]
[1736576639419,2.6733,187.08,187.05,4.36981086]
[1736576639616,2.6733,187.08,187.03,7.14994112]
[1736576639818,2.6733,187.08,187.04,4.37031608]
[1736576640014,2.6733,187.08,187.05,4.37031608]
[1736576640212,2.6733,187.08,187.03,7.14994112]
[1736576640417,2.6733,187.08,187.04,4.36940226]
[1736576640621,2.6731,187.09,187.05,4.36940226]
[1736576640912,4.95615546,187.11,187.07,7.14994112]
[1736576641114,8.67654112,187.13,187.07,7.14994112]
[1736576641610,2.6727,187.12,187.07,9.82334112]
[1736576642018,2.6726,187.13,187.09,2.6731]
[1736576642313,39.57849048,187.14,187.09,2.6731]
[1736576643017,39.57849048,187.14,187.1,4.37010859]
[1736576643218,42.25089048,187.14,187.09,2.6731]
[1736576643414,42.25089048,187.14,187.1,4.37010428]
[1736576643612,42.25089048,187.14,187.09,2.6731]
[1736576643817,42.25089048,187.14,187.1,4.37058487]
[1736576644116,2.6724,187.14,187.09,9.82304112]
[1736576644326,2.6724,187.14,187.1,4.36858612]
[1736576644622,1.6776,187.18,187.11,7.14994112]
[1736576644820,148.33306847,187.32,187.15,7.14994112]
[1736576645118,4.9572,187.31,187.19,7.14994112]
[1736576645423,9.82074112,187.26,187.19,7.14994112]
[1736576645611,7.14994112,187.26,187.19,7.14994112]
[1736576646312,7.14994112,187.25,187.19,7.14994112]
[1736576647323,2.671,187.24,187.19,7.14994112]
[1736576650618,7.14994112,187.25,187.19,7.14994112]
[1736576650818,7.14994112,187.21,187.12,7.14994112]
[1736576651131,7.14994112,187.16,187.1,57.99703742]
[1736576652019,7.14994112,187.16,187.1,7.14994112]
[1736576652218,2.6723,187.15,187.1,7.14994112]
[1736576652723,7.14994112,187.16,187.1,7.14994112]
[1736576653328,7.14994112,187.16,187.09,8.0331]
[1736576653626,7.14994112,187.16,187.09,15.18304112]
[1736576654123,7.14994112,187.14,187.06,2.6735]
[1736576654424,7.14994112,187.14,187.06,9.82344112]
[1736576655126,2.6726,187.13,187.06,9.82344112]
[1736576655823,7.14994112,187.12,187.06,9.82344112]
[1736576657026,7.14994112,187.12,187.06,7.14994112]
[1736576657326,2.6726,187.13,187.08,7.14994112]
[1736576658830,2.6726,187.13,187.07,2.6734]
[1736576659724,2.6726,187.13,187.06,7.14994112]
[1736576660833,7.14994112,187.1,187.04,50.24389013]
[1736576661027,7.14994112,187.1,187.05,4.35772495]
[1736576661224,7.14994112,187.1,187.04,57.39383125]
[1736576661524,7.14994112,187.1,187.05,4.35844844]
[1736576661727,7.14994112,187.1,187.04,60.06763125]
[1736576663426,9.82294112,187.1,187.04,60.06763125]
[1736576667036,9.82294112,187.1,187.05,4.3619635]
[1736576667235,9.82294112,187.1,187.04,60.06763125]
[1736576667935,7.14994112,187.1,187.04,50.24389013]
[1736576668136,2.6734,187.07,187.03,12.50994112]
[1736576668336,2.6734,187.07,187.03,7.14994112]
[1736576670436,2.673,187.11,187.05,7.14994112]
[1736576670634,2.673,187.11,187.07,7.14994112]
[1736576678537,4.3134,187.12,187.07,9.82334112]
[1736576679239,9.82254112,187.13,187.08,2.6733]
[1736576681640,7.14994112,187.13,187.08,2.6733]
[1736576682043,2.6724,187.14,187.09,2.6731]
[1736576683143,9.82224112,187.15,187.1,2.6729]
[1736576684744,2.6724,187.14,187.09,9.82304112]
[1736576687746,2.6731,187.09,187.07,29.49970124]
[1736576687945,7.14994112,187.09,187.07,29.49970124]
[1736576688346,2.6733,187.08,187.07,29.49970124]
[1736576688944,7.14994112,187.09,187.02,29.49970124]
[1736576689151,2.6737,187.05,187.02,29.49970124]
[1736576690647,2.6737,187.05,187.0,36.64964236]
[1736576690844,2.6737,187.05,187.01,4.36389299]
[1736576691044,2.6737,187.05,187.02,4.36389299]
[1736576691343,2.6737,187.05,187.0,36.64964236]
[1736576691539,2.6737,187.05,187.01,4.36493582]
[1736576691747,2.6737,187.05,187.02,4.36493582]
[1736576691939,2.6737,187.05,187.0,36.64964236]
[1736576692143,2.6737,187.05,187.01,4.3648956]
[1736576692347,2.6737,187.05,187.02,4.3648956]
[1736576692549,2.6737,187.05,187.0,14.52486643]
[1736576692850,2.6737,187.05,187.01,4.36647409]
[1736576693045,2.6737,187.05,187.02,4.36647409]
[1736576693351,2.6737,187.05,187.03,4.36647409]
[1736576693648,2.6737,187.05,187.0,14.52486643]
[1736576693849,2.6737,187.05,187.01,4.36827078]
[1736576694048,2.6737,187.05,187.02,4.36827078]
[1736576694352,2.6737,187.05,187.03,4.36827078]
[1736576694545,2.6737,187.05,187.01,5.60942785]
[1736576694845,2.6737,187.05,187.02,4.37069181]
[1736576695152,2.6737,187.05,187.03,4.37069181]
[1736576695349,2.6737,187.05,187.04,4.37069181]
[1736576696051,9.82364112,187.05,187.04,4.37069181]
[1736576696855,2.6733,187.08,187.04,4.37456276]
[1736576697053,2.6733,187.08,187.03,7.14994112]
[1736576697352,2.6733,187.08,187.04,4.37417286]
[1736576697553,2.6733,187.08,187.05,4.37417286]
[1736576697752,2.6733,187.08,187.03,7.14994112]
[1736576697953,2.6733,187.08,187.04,4.37487805]
[1736576698155,2.6733,187.08,187.05,4.37487805]
[1736576698348,2.6733,187.08,187.03,7.14994112]
[1736576698551,2.6733,187.08,187.04,4.3753656]
[1736576698757,2.6733,187.08,187.05,4.3753656]
[1736576698952,2.6733,187.08,187.03,9.82394112]
[1736576699155,2.6733,187.08,187.04,4.37557011]
[1736576699357,2.6733,187.08,187.05,4.37557011]
[1736576699556,2.6733,187.08,187.03,9.82394112]
[1736576699757,2.6733,187.08,187.04,4.3761009]
[1736576699951,2.6733,187.08,187.05,4.3761009]
[1736576700253,2.6733,187.08,187.03,9.82394112]
[1736576700460,2.6733,187.08,187.04,4.37529054]
[1736576700757,2.6733,187.08,187.05,4.37529054]
[1736576700957,2.6733,187.08,187.03,9.82394112]
[1736576701159,2.6733,187.08,187.04,4.37526251]
[1736576701358,2.6733,187.08,187.05,4.37526251]
[1736576701559,2.6733,187.08,187.03,9.82394112]
[1736576701760,2.6733,187.08,187.04,4.37470946]
[1736576702056,195.0,187.18,187.05,4.37470946]
[1736576702250,195.0,187.18,187.07,2.6734]
[1736576702251,9.82274112,187.12,187.07,2.6734]
[1736576702758,2.6729,187.11,187.07,2.6734]
[1736576703158,2.6729,187.11,187.08,4.37255996]
[1736576703349,2.6729,187.11,187.07,2.6734]
[1736576703554,2.6729,187.11,187.08,4.37277804]
[1736576703858,9.82264112,187.13,187.08,2.6733]
[1736576704361,2.6727,187.12,187.08,2.6733]
[1736576705253,2.6727,187.12,187.07,7.14994112]
[1736576705459,2.6727,187.12,187.08,4.37364842]
[1736576705658,2.6727,187.12,187.07,9.82334112]
[1736576705860,2.6727,187.12,187.08,4.37372714]
[1736576706055,2.6727,187.12,187.07,9.82334112]
[1736576706349,2.6727,187.12,187.08,4.37353598]
[1736576706654,7.14994112,187.11,187.04,7.37492531]
[1736576706861,7.14994112,187.09,187.05,4.37393114]
[1736576707160,7.14994112,187.09,187.06,4.37393114]
[1736576707359,7.14994112,187.09,187.07,4.37393114]
[1736576707561,7.14994112,187.09,187.05,5.61691776]
[1736576707756,2.6733,187.08,187.06,4.37488499]
[1736576708059,2.6733,187.08,187.03,9.82384112]
[1736576708262,2.6733,187.08,187.04,4.37489973]
[1736576708456,7.14994112,187.09,187.05,4.37489973]
[1736576708761,2.6734,187.07,187.06,4.37489973]
[1736576709163,2.6734,187.07,187.02,15.20404112]
[1736576709462,2.6734,187.07,187.03,4.37553612]
[1736576709761,2.6734,187.07,187.04,4.37553612]
[1736576709957,2.6734,187.07,187.05,4.37553612]
[1736576710154,2.6734,187.07,187.06,4.37553612]
[1736576710754,2.6734,187.07,187.02,15.20404112]
[1736576711057,2.6734,187.07,187.03,4.37533902]
[1736576711257,2.6734,187.07,187.04,4.37533902]
[1736576711456,2.6734,187.07,187.05,4.3752015]
[1736576711664,2.6734,187.07,187.02,15.20404112]
[1736576711863,2.6734,187.07,187.03,4.3749377]
[1736576712163,2.6734,187.07,187.04,4.3749377]
[1736576712364,2.6734,187.07,187.05,4.3749377]
[1736576712565,2.6734,187.07,187.02,15.20404112]
[1736576712768,2.6734,187.07,187.03,4.37466332]
[1736576712967,2.6734,187.07,187.04,4.37466332]
[1736576713166,2.6734,187.07,187.03,5.61764559]
[1736576713167,2.6734,187.07,187.05,4.37466332]
[1736576713367,2.6734,187.07,187.02,15.20404112]
[1736576713769,2.6734,187.07,187.03,4.37529988]
[1736576713971,2.6734,187.07,187.04,4.37529988]
[1736576714169,2.6734,187.07,187.05,4.37529988]
[1736576714469,2.6734,187.07,187.06,4.3754892]
[1736576714672,2.6734,187.07,187.02,15.20404112]
[1736576714870,2.6734,187.07,187.03,9.99493816]
[1736576715071,2.6734,187.07,187.04,4.37581618]
[1736576715373,2.6734,187.07,187.05,4.37581618]
[1736576715574,2.6734,187.07,187.02,15.20404112]
[1736576715868,2.6734,187.07,187.03,4.37526484]
[1736576716069,2.6734,187.07,187.04,4.37526484]
[1736576716369,2.6734,187.07,187.05,4.37526484]
[1736576716569,2.6734,187.07,187.02,15.20404112]
[1736576716768,2.6734,187.07,187.03,4.37565409]
[1736576716963,2.6734,187.07,187.02,15.20404112]
[1736576716964,2.6734,187.07,187.04,4.37565409]
[1736576717169,2.6734,187.07,187.05,4.37565409]
[1736576717370,2.6734,187.07,187.02,15.20404112]
[1736576717670,2.6733,187.08,187.03,7.04930392]
[1736576717865,2.6733,187.08,187.04,4.37530392]